bitfinex-derivatives/quotes_SOLF0:USTF0_20250117
["timestamp","ask_amount","ask_price","bid_price","bid_amount"]
[1737109336889,3.0706,216.6,216.38,3.78363024]
[1737109337090,3.0706,216.6,216.36,1.5085]
[1737109337393,3.0706,216.6,216.37,3.78827922]
[1737109337688,16.8906,216.6,216.36,1.5085]
[1737109337988,16.8906,216.6,216.38,4.6225]
[1737109337989,4.6211,216.45,216.38,4.6225]
[1737109338189,16.8906,216.6,216.32,1.4602]
[1737109338589,4.622,216.41,216.32,1.4602]
[1737109339193,3.0706,216.6,216.31,1.4593]
[1737109339194,13.82,216.51,216.31,1.4593]
[1737109339391,9.2374,216.57,216.31,1.4593]
[1737109339392,16.7542,216.5,216.31,1.4593]
[1737109339588,16.7542,216.5,216.32,4.6237]
[1737109339589,4.6227,216.38,216.32,4.6237]
[1737109339787,16.7542,216.5,216.28,3.80422936]
[1737109339997,16.7542,216.5,216.27,1.5243]
[1737109340196,4.6228,216.37,216.27,1.5243]
[1737109340497,16.7542,216.5,216.27,1.5243]
[1737109340697,4.623,216.36,216.3,4.6243]
[1737109342401,16.7542,216.5,216.3,4.6243]
[1737109342402,4.6228,216.38,216.3,4.6243]
[1737109342592,16.7542,216.5,216.28,4.6245]
[1737109342798,16.7542,216.5,216.27,1.5243]
[1737109343401,4.6229,216.37,216.27,1.5243]
[1737109344303,4.6231,216.36,216.22,1.5696]
[1737109344598,4.6231,216.36,216.25,3.81663651]
[1737109344798,4.6231,216.36,216.26,3.81663651]
[1737109345000,4.6231,216.36,216.27,3.81663651]
[1737109345201,4.6231,216.36,216.22,4.4314]
[1737109345400,4.6231,216.36,216.25,3.81564318]
[1737109345595,4.6228,216.38,216.26,3.81564318]
[1737109345792,4.6228,216.38,216.27,3.81564318]
[1737109345994,4.6228,216.38,216.22,4.4314]
[1737109346198,16.7542,216.5,216.3,4.6241]
[1737109346504,16.7542,216.5,216.22,4.4314]
[1737109346704,16.7542,216.5,216.25,3.81932823]
[1737109347004,16.7542,216.5,216.26,3.81932823]
[1737109347207,4.6228,216.37,216.3,4.6243]
[1737109347505,4.6228,216.37,216.22,4.4314]
[1737109347803,4.6231,216.36,216.3,4.6241]
[1737109348003,16.7542,216.5,216.22,4.4314]
[1737109348204,4.623,216.37,216.31,4.6241]
[1737109348606,16.7542,216.5,216.22,4.4314]
[1737109348903,16.7542,216.5,216.31,4.624]
[1737109349306,4.6228,216.38,216.32,4.6238]
[1737109350707,4.6229,216.37,216.32,4.6238]
[1737109350908,16.7542,216.5,216.22,4.4314]
[1737109351111,2.9342,216.5,216.25,3.8244145]
[1737109351303,2.9342,216.5,216.39,4.6224]
[1737109351501,2.9342,216.5,216.27,3.8244145]
[1737109351699,7.5542,216.5,216.29,9.2491]
[1737109351905,152.05406609,216.63,216.3,3.8244145]
[1737109352210,4.62,216.51,216.31,3.8244145]
[1737109352406,16.7721,216.62,216.32,8.2585145]
[1737109352705,16.7721,216.62,216.38,4.6226]
[1737109352910,4.621,216.46,216.32,4.4341]
[1737109353108,4.621,216.46,216.33,3.82437962]
[1737109353307,16.7721,216.62,216.34,3.82437962]
[1737109353504,16.7721,216.62,216.32,4.4341]
[1737109353708,16.7721,216.62,216.33,3.82619817]
[1737109353911,16.7721,216.62,216.34,3.82619817]
[1737109354112,4.621,216.46,216.39,4.6224]
[1737109355110,4.6212,216.45,216.37,4.6227]
[1737109355305,16.7721,216.62,216.32,4.4341]
[1737109355505,16.7721,216.62,216.33,3.82961938]
[1737109355705,4.6213,216.45,216.38,4.6226]
[1737109358416,13.82,216.6,216.38,4.6226]
[1737109358617,4.6214,216.44,216.38,4.6226]
[1737109359816,4.6214,216.44,216.36,4.6228]
[1737109360018,4.6215,216.43,216.32,4.4341]
[1737109360219,4.6215,216.43,216.33,3.83706793]
[1737109360415,13.82,216.59,216.38,4.6225]
[1737109360920,13.82,216.57,216.38,4.6225]
[1737109361119,4.6214,216.44,216.38,4.6225]
[1737109363618,19.61418892,216.56,216.36,4.6229]
[1737109363821,13.82,216.56,216.32,4.4341]
[1737109364025,13.82,216.58,216.32,4.4341]
[1737109364323,4.6217,216.43,216.32,4.4341]
[1737109364520,13.82,216.56,216.32,4.4341]
[1737109364724,13.82,216.54,216.21,11.85322239]
[1737109364926,13.82,216.54,216.25,8.33620268]
[1737109365120,13.82,216.54,216.26,3.84620268]
[1737109365324,20.78735804,216.54,216.27,3.84620268]
[1737109365627,4.6225,216.39,216.33,4.6235]
[1737109366027,4.6225,216.39,216.26,3.84661344]
[1737109366332,4.6225,216.39,216.27,3.84661344]
[1737109366628,4.6225,216.39,216.33,4.6235]
[1737109367826,4.6225,216.39,216.25,4.49]
[1737109368026,4.6225,216.39,216.26,3.84717028]
[1737109368327,4.6225,216.39,216.27,3.84717028]
[1737109368527,4.6225,216.39,216.33,4.6235]
[1737109369530,16.8624,216.5,216.33,4.6235]
[1737109369830,4.6226,216.38,216.32,4.6238]
[1737109371738,4.6226,216.38,216.25,4.49]
[1737109371930,4.6226,216.38,216.33,4.6237]
[1737109372531,4.6228,216.37,216.31,4.6239]
[1737109372730,4.6228,216.37,216.25,4.49]
[1737109372931,4.6228,216.37,216.26,3.84746266]
[1737109373230,4.6228,216.37,216.27,3.84746266]
[1737109373431,4.6228,216.37,216.28,3.84746266]
[1737109373627,4.6228,216.37,216.29,3.84746266]
[1737109373834,4.6228,216.37,216.25,4.49]
[1737109374037,4.6228,216.37,216.26,3.84736136]
[1737109374333,4.6228,216.37,216.32,4.6239]
[1737109375738,4.6231,216.36,216.25,4.49]
[1737109375939,4.6231,216.36,216.26,3.84747162]
[1737109376236,4.6231,216.36,216.25,4.49]
[1737109376237,4.6231,216.36,216.27,3.84747162]
[1737109376437,4.6231,216.36,216.25,4.49]
[1737109376640,4.6231,216.36,216.31,4.6239]
[1737109377233,4.6229,216.37,216.32,4.6239]
[1737109379940,9.2413,216.48,216.25,4.49]
[1737109380236,9.2413,216.48,216.26,3.84611517]
[1737109380536,4.622,216.41,216.35,4.6231]
[1737109380735,4.622,216.41,216.25,4.49]
[1737109380937,4.622,216.41,216.26,3.84646342]
[1737109381239,4.622,216.41,216.35,4.6231]
[1737109381439,9.2413,216.48,216.25,4.49]
[1737109381640,9.2413,216.48,216.34,4.6233]
[1737109381940,9.2413,216.48,216.25,4.49]
[1737109382138,23.0613,216.48,216.26,3.84813993]
[1737109382330,9.2413,216.48,216.27,3.84813993]
[1737109382532,9.2413,216.48,216.28,3.84813993]
[1737109382737,4.6222,216.41,216.35,4.6231]
[1737109382938,9.2413,216.48,216.35,4.6231]
[1737109383239,4.6222,216.4,216.35,4.6231]
[1737109384740,4.6222,216.4,216.36,4.623]
[1737109385739,4.6224,216.39,216.35,4.6232]
[1737109386041,3.0424,216.5,216.25,4.49]
[1737109386240,4.6213,216.45,216.33,4.6236]
[1737109386537,4.6213,216.45,216.25,4.49]
[1737109386538,3.0424,216.5,216.34,6.84051292]
[1737109386845,3.0424,216.5,216.35,3.84981292]
[1737109387142,4.6209,216.46,216.41,4.6218]
[1737109387645,3.0424,216.5,216.34,2.9907]
[1737109387944,4.6207,216.47,216.43,4.6215]
[1737109388338,4.6209,216.46,216.43,4.6215]
[1737109390238,4.6209,216.46,216.35,1.4977]
[1737109390438,3.0424,216.5,216.41,4.6218]
[1737109390642,3.0424,216.5,216.35,1.4977]
[1737109390842,3.0424,216.5,216.36,3.85010172]
[1737109391143,4.6213,216.44,216.4,4.622]
[1737109391347,3.0424,216.5,216.35,1.4977]
[1737109391643,3.0424,216.5,216.39,4.6224]
[1737109392048,4.6215,216.44,216.39,4.6224]
[1737109392236,3.0424,216.5,216.37,4.6226]
[1737109393045,4.6221,216.41,216.37,4.6226]
[1737109393239,3.0424,216.5,216.37,4.6226]
[1737109393844,4.6224,216.4,216.36,4.623]
[1737109394347,4.6224,216.39,216.34,2.9907]
[1737109394547,4.6224,216.39,216.35,4.6232]
[1737109395348,3.0424,216.5,216.34,4.6234]
[1737109395349,4.6227,216.38,216.34,4.6234]
[1737109396942,4.6215,216.44,216.32,4.6238]
[1737109397146,9.2406,216.49,216.28,1.5227]
[1737109397347,9.2406,216.49,216.29,3.85538616]
[1737109397544,4.623,216.37,216.33,4.6235]
[1737109397749,4.623,216.37,216.28,1.5227]
[1737109397951,9.2406,216.49,216.29,3.85693503]
[1737109398160,9.2406,216.49,216.3,3.85693503]
[1737109398448,4.6227,216.38,216.34,4.6233]
[1737109399645,4.6234,216.35,216.31,4.6239]
[1737109399846,9.2412,216.48,216.32,3.85882043]
[1737109400142,9.2412,216.48,216.28,1.5227]
[1737109400346,4.6229,216.37,216.33,4.6235]
[1737109400544,9.2412,216.48,216.33,4.6235]
[1737109401848,4.6214,216.44,216.33,4.6235]
[1737109402153,9.2412,216.48,216.36,4.623]
[1737109402354,9.2412,216.48,216.28,1.5227]
[1737109402654,4.6224,216.4,216.29,3.8603237]
[1737109402955,4.6224,216.4,216.3,3.8603237]
[1737109403254,9.2412,216.48,216.33,4.6235]
[1737109403449,4.6225,216.39,216.34,3.8603237]
[1737109403645,4.6225,216.39,216.28,1.5227]
[1737109403848,4.6225,216.39,216.35,4.6231]
[1737109405355,4.6225,216.39,216.36,4.623]
[1737109405955,4.6225,216.39,216.35,4.6232]
[1737109406552,4.6226,216.38,216.35,4.6232]
[1737109407658,4.6219,216.42,216.38,4.6226]
[1737109408353,3.0424,216.5,216.38,4.6226]
[1737109408558,4.622,216.41,216.37,4.6228]
[1737109408758,4.622,216.41,216.38,3.86081768]
[1737109408957,3.0424,216.5,216.28,1.5227]
[1737109409151,4.6225,216.39,216.34,4.6233]
[1737109409351,4.6225,216.39,216.35,3.8614555]
[1737109409659,4.6225,216.39,216.36,3.8614555]
[1737109409861,4.6225,216.39,216.34,4.6233]
[1737109410159,4.6225,216.39,216.35,3.86208394]
[1737109410362,3.0424,216.5,216.36,3.86208394]
[1737109410658,4.6226,216.38,216.34,4.6233]
[1737109410859,4.6226,216.38,216.35,3.86214954]
[1737109411060,4.6226,216.38,216.34,4.6233]
[1737109411360,4.6226,216.38,216.35,3.86227063]
[1737109411555,4.6226,216.38,216.34,4.6233]
[1737109411754,4.6226,216.38,216.35,3.86311966]
[1737109411956,4.6226,216.38,216.34,4.6233]
[1737109412156,4.6224,216.39,216.35,3.86362893]
[1737109412353,9.2409,216.49,216.31,4.6239]
[1737109412557,3.0424,216.5,216.32,3.86429353]
[1737109412856,3.0424,216.5,216.33,3.86429353]
[1737109413059,4.623,216.37,216.32,4.6238]
[1737109413257,9.2411,216.48,216.33,3.86461043]
[1737109413556,9.2411,216.48,216.32,4.6238]
[1737109413762,9.2411,216.48,216.33,3.86467103]
[1737109414054,9.2411,216.48,216.32,4.6238]
[1737109414261,4.6231,216.36,216.33,3.863328]
[1737109414560,9.2411,216.48,216.33,4.6235]
[1737109415462,9.2411,216.48,216.34,4.6234]
[1737109415665,4.623,216.37,216.34,4.6234]
[1737109415963,9.2415,216.47,216.33,4.6237]
[1737109416157,4.6232,216.36,216.33,4.6237]
[1737109417363,4.6236,216.34,216.3,4.6243]
[1737109417662,4.6236,216.34,216.31,3.86258484]
[1737109417855,4.6236,216.34,216.32,3.86258484]
[1737109418059,4.6236,216.34,216.29,4.6245]
[1737109418259,4.6236,216.34,216.3,3.86058061]
[1737109418457,4.6236,216.34,216.31,3.86058061]
[1737109418658,4.6236,216.34,216.32,3.86058061]
[1737109418856,4.6236,216.34,216.29,4.6245]
[1737109419059,4.6236,216.34,216.3,3.86023011]
[1737109419363,4.6237,216.33,216.31,3.86023011]
[1737109419563,4.6237,216.33,216.32,3.86023011]
[1737109419862,4.6235,216.34,216.32,3.86023011]
[1737109420061,9.2424,216.45,216.29,4.6245]
[1737109420263,9.2424,216.45,216.3,3.86021141]
[1737109420451,9.2424,216.45,216.31,3.86021141]
[1737109420657,4.6236,216.34,216.29,4.6245]
[1737109420862,4.6236,216.34,216.3,3.86006199]
[1737109421065,4.6236,216.34,216.29,4.6245]
[1737109421254,4.6236,216.34,216.3,3.86055927]
[1737109421453,4.6237,216.33,216.28,6.1474]
[1737109421657,4.6237,216.33,216.29,3.8604266]
[1737109421856,4.6237,216.33,216.3,3.8604266]
[1737109422065,4.6237,216.33,216.28,6.1474]
[1737109422262,4.6237,216.33,216.29,3.86073765]
[1737109422463,4.6237,216.33,216.3,3.86073765]
[1737109422665,4.6237,216.33,216.28,6.1474]
[1737109422854,4.6237,216.33,216.29,3.86039098]
[1737109423058,4.6237,216.33,216.3,3.86039098]
[1737109423260,4.6237,216.33,216.28,1.5227]
[1737109423464,9.2428,216.44,216.25,3.001]
[1737109423664,13.82,216.44,216.26,3.86103364]
[1737109423867,13.82,216.44,216.25,3.001]
[1737109424065,159.04771982,216.49,216.25,3.001]
[1737109424066,23.0631,216.43,216.26,3.86199769]
[1737109424263,23.0631,216.43,216.25,3.001]
[1737109424665,4.6246,216.29,216.25,7.6263]
[1737109426264,4.6246,216.29,216.25,3.001]
[1737109426962,4.6252,216.26,216.25,1.5547]
[1737109427165,4.6252,216.26,216.15,1.4354]
[1737109427362,16.7741,216.39,216.16,3.85673356]
[1737109427565,4.626,216.23,216.17,3.85673356]
[1737109427759,4.626,216.23,216.18,3.85673356]
[1737109427958,13.82,216.38,216.15,2.9261]
[1737109427959,9.246,216.37,216.19,3.85673356]
[1737109428165,4.6264,216.21,216.15,2.9261]
[1737109428374,13.82,216.38,216.16,3.8588246]
[1737109428665,4.6266,216.2,216.15,2.9261]
[1737109428967,13.82,216.36,216.15,2.9261]
[1737109429168,4.6244,216.3,216.15,2.9261]
[1737109429368,3.0197,216.29,216.15,2.9261]
[1737109429968,3.0197,216.29,216.15,1.4907]
[1737109430160,3.0197,216.29,215.99,1.512]
[1737109430360,3.0197,216.29,216.0,3.8513145]
[1737109430667,3.0197,216.29,216.07,4.6291]
[1737109430966,16.8397,216.29,216.07,4.6291]
[1737109431568,16.8397,216.29,215.99,4.5875]
[1737109431766,13.82,216.27,216.04,4.6298]
[1737109432369,9.2497,216.28,216.08,4.629]
[1737109432565,3.0197,216.29,216.0,3.83964098]
[1737109432761,3.0197,216.29,216.01,3.83964098]
[1737109432966,3.0197,216.29,216.14,4.6277]
[1737109433360,3.0197,216.29,216.04,3.83964098]
[1737109433662,3.0197,216.29,216.14,4.6276]
[1737109433867,4.626,216.23,216.06,3.83964098]
[1737109434062,3.0197,216.29,216.07,3.83964098]
[1737109434264,3.0197,216.29,216.08,5.27478388]
[1737109434470,3.0197,216.29,216.09,3.0267]
[1737109434663,4.6274,216.16,216.09,3.0267]
[1737109435059,16.8397,216.29,216.09,3.0267]
[1737109435763,4.628,216.13,216.09,3.0267]
[1737109437163,4.6284,216.11,216.09,1.5354]
[1737109437562,4.6284,216.11,216.08,1.4355]
[1737109437563,13.82,216.27,215.98,3.8358048]
[1737109437775,23.0705,216.26,216.07,4.6292]
[1737109438072,23.0705,216.26,215.99,5.3365048]
[1737109438073,9.2505,216.26,216.0,3.8358048]
[1737109438373,4.6281,216.13,216.01,3.8358048]
[1737109438573,4.6281,216.13,215.99,1.5007]
[1737109438775,9.2505,216.26,216.0,3.8303236]
[1737109439071,4.6281,216.13,216.06,4.6292]
[1737109439273,9.2505,216.26,216.06,4.6292]
[1737109439469,4.6283,216.12,216.06,4.6292]
[1737109439674,23.0711,216.25,216.04,4.6297]
[1737109439869,13.82,216.25,215.99,1.5007]
[1737109440075,4.6292,216.08,216.02,4.6301]
[1737109440277,4.6292,216.08,215.99,1.5007]
[1737109440769,4.6297,216.05,216.0,4.6307]
[1737109441174,4.6297,216.05,215.97,3.83130287]
[1737109441374,4.6297,216.05,215.99,4.6309]
[1737109441973,4.6299,216.04,215.98,4.631]
[1737109442169,9.2533,216.2,215.97,1.5316]
[1737109442378,3.1167,216.19,215.97,1.5316]
[1737109443372,3.1167,216.19,216.06,4.6294]
[1737109443877,3.1167,216.19,216.07,4.6291]
[1737109444271,4.6283,216.12,216.07,4.6291]
[1737109444773,3.1167,216.19,215.97,1.5316]
[1737109444969,4.6276,216.15,215.97,1.5316]
[1737109445171,4.6276,216.15,215.98,3.82300621]
[1737109445372,1.5575,216.19,216.09,4.6287]
[1737109445771,36.95535225,216.24,216.11,4.6282]
[1737109446075,36.95535225,216.24,216.0,3.82300621]
[1737109446277,36.95535225,216.24,215.98,3.82051537]
[1737109446476,4.6272,216.17,216.09,4.6288]
[1737109446674,36.95535225,216.24,216.0,3.82051537]
[1737109446981,36.95535225,216.24,216.01,3.82051537]
[1737109447276,4.6273,216.16,216.02,3.82051537]
[1737109447475,4.6273,216.16,215.98,3.82051537]
[1737109447778,4.6271,216.17,215.99,3.82051537]
[1737109447979,4.6271,216.17,216.0,3.82051537]
[1737109448281,4.6275,216.16,216.09,4.6286]
[1737109448878,4.6275,216.16,215.97,1.5316]
[1737109448879,4.6275,216.16,216.11,4.6284]
[1737109449174,0.18472,216.24,216.0,9.2613]
[1737109449481,0.18472,216.24,216.01,3.81883093]
[1737109449681,4.6266,216.2,216.02,3.81883093]
[1737109449879,4.6266,216.2,216.03,3.81853846]
[1737109450081,4.6266,216.2,216.04,5.26233846]
[1737109450381,4.6266,216.2,216.14,4.6276]
[1737109450681,0.18472,216.24,216.05,3.81853846]
[1737109450882,0.18472,216.24,216.14,4.6275]
[1737109451178,4.6264,216.21,216.06,6.73680181]
[1737109451381,0.18472,216.24,216.14,4.6276]
[1737109451777,4.6265,216.2,216.14,4.6276]
[1737109452682,4.6263,216.21,216.16,4.6273]
[1737109452878,0.18472,216.24,216.07,3.81909063]
[1737109453072,0.18472,216.24,216.08,3.81909063]
[1737109453276,0.18472,216.24,216.22,4.6259]
[1737109453475,0.18472,216.24,216.06,12.1775]
[1737109453476,0.18472,216.24,216.1,3.81909063]
[1737109453774,32.25970453,216.48,216.06,12.1775]
[1737109453775,4.6237,216.33,216.26,4.625]
[1737109453979,1.4978,216.39,216.12,3.81649326]
[1737109454174,1.5421,216.4,216.13,3.81649326]
[1737109454370,1.5421,216.4,216.29,4.6245]
[1737109454575,1.5421,216.4,216.14,3.81649326]
[1737109454576,1.5421,216.4,216.15,3.81649326]
[1737109454776,1.5421,216.4,216.16,6.71039326]
[1737109455074,1.5421,216.4,216.17,3.81649326]
[1737109455376,1.5421,216.4,216.18,3.81649326]
[1737109455580,1.5421,216.4,216.19,3.81649326]
[1737109455778,1.5421,216.4,216.2,3.81649326]
[1737109456075,4.6229,216.37,216.21,3.81649326]
[1737109456272,4.6229,216.37,216.16,2.8939]
[1737109456273,4.6229,216.37,216.22,3.81649326]
[1737109456471,4.6229,216.37,216.16,2.8939]
[1737109456672,4.6233,216.35,216.17,3.81739493]
[1737109456876,4.6233,216.35,216.18,3.81739493]
[1737109457077,4.6233,216.35,216.19,3.81739493]
[1737109457277,1.4978,216.47,216.29,4.6245]
[1737109457479,4.623,216.37,216.29,4.6245]
[1737109458284,4.623,216.37,216.3,4.6243]
[1737109458490,4.6225,216.39,216.25,3.81739493]
[1737109458684,1.53,216.46,216.26,3.0118]
[1737109458884,1.53,216.46,216.33,4.6236]
[1737109459187,4.6224,216.39,216.33,4.6236]
[1737109459382,4.6224,216.39,216.31,4.6239]
[1737109459581,4.6224,216.39,216.27,1.5451]
[1737109461391,1.53,216.46,216.28,4.6247]
[1737109461791,4.6232,216.36,216.29,4.6245]
[1737109461991,1.53,216.46,216.29,4.6245]
[1737109462384,4.6224,216.39,216.29,4.6245]
[1737109462593,1.53,216.46,216.29,4.6245]
[1737109462993,4.6233,216.35,216.29,4.6245]
[1737109463494,4.6233,216.35,216.27,1.5451]
[1737109463712,4.6233,216.35,216.3,4.6243]
[1737109465394,4.6235,216.34,216.29,4.6245]
[1737109466095,9.243,216.44,216.13,3.8213562]
[1737109466289,9.243,216.44,216.14,6.8861562]
[1737109466487,9.243,216.44,216.15,3.8213562]
[1737109466689,4.6243,216.31,216.24,4.6254]
[1737109466887,9.243,216.44,216.24,4.6254]
[1737109467087,9.243,216.44,216.14,3.0648]
[1737109467298,1.53,216.46,216.15,3.82320697]
[1737109467503,1.53,216.46,216.14,3.0648]
[1737109467799,4.6254,216.26,216.21,4.6262]
[1737109468105,4.6254,216.26,216.14,3.0648]
[1737109468997,4.6256,216.25,216.14,3.0648]
[1737109469698,4.6257,216.24,216.18,4.6268]
[1737109469902,2.9518,216.37,216.18,4.6268]
[1737109470101,2.9518,216.37,216.14,3.0648]
[1737109470504,4.6254,216.26,216.14,3.0648]
[1737109471301,2.9518,216.37,216.19,4.6265]
[1737109471802,4.6254,216.26,216.19,4.6265]
[1737109472001,2.9518,216.37,216.19,4.6265]
[1737109472505,4.6254,216.25,216.19,4.6265]
[1737109473506,4.6254,216.25,216.2,4.6264]
[1737109474810,2.9518,216.37,216.14,3.0648]
[1737109475303,2.9518,216.37,216.19,4.6266]
[1737109475506,9.2461,216.36,216.14,3.0648]
[1737109475802,2.9518,216.37,216.14,3.0648]
[1737109476005,2.9518,216.37,216.17,4.6271]
[1737109476202,9.2466,216.35,216.14,3.0648]
[1737109477106,4.626,216.22,216.18,4.6267]
[1737109479608,4.626,216.22,216.17,4.627]
[1737109482406,4.626,216.23,216.14,3.0648]
[1737109483006,4.626,216.23,216.17,4.627]
[1737109483909,16.7718,216.37,216.1,3.83342465]
[1737109484109,16.7718,216.37,216.03,3.83513499]
[1737109484311,16.7718,216.37,216.04,3.83513499]
[1737109484512,4.627,216.18,216.13,4.6278]
[1737109486014,4.6273,216.17,216.02,9.2603]
[1737109486211,4.6273,216.17,216.03,3.83613386]
[1737109486412,4.6273,216.17,216.04,3.83613386]
[1737109486611,4.6273,216.17,216.11,4.6282]
[1737109486814,2.9292,216.28,216.06,3.83613386]
[1737109487113,2.9292,216.28,216.02,9.2603]
[1737109487313,2.9292,216.28,216.11,4.6284]
[1737109487515,4.6272,216.17,216.11,4.6284]
[1737109488109,4.6272,216.17,216.07,3.83611302]
[1737109488304,4.6277,216.15,216.0,4.3388]
[1737109488511,4.6277,216.15,216.01,3.8389137]
[1737109488711,4.6277,216.15,216.02,3.83894939]
[1737109489012,4.6277,216.15,216.09,4.6286]
[1737109489216,4.628,216.13,216.04,3.83894939]
[1737109489412,2.9292,216.28,216.0,4.3388]
[1737109489610,2.9292,216.28,216.01,3.84141874]
[1737109489812,9.2509,216.25,216.02,3.84141874]
[1737109490010,9.2509,216.25,216.03,3.84141874]
[1737109490314,4.6281,216.13,216.0,4.3388]
[1737109490510,4.6281,216.13,216.01,3.84214306]
[1737109490712,4.6281,216.13,216.07,4.6292]
[1737109492015,4.6282,216.12,216.07,4.6292]
[1737109493114,4.6282,216.12,216.0,4.3388]
[1737109493308,4.6282,216.12,216.06,4.6294]
[1737109493513,4.6288,216.1,216.0,4.3388]
[1737109493811,16.7492,216.28,216.04,4.6298]
[1737109494014,4.6287,216.1,216.0,4.3388]
[1737109494315,9.2524,216.22,216.0,4.3388]
[1737109494505,9.2524,216.22,216.04,4.6298]
[1737109494706,9.2524,216.22,216.0,4.3388]
[1737109494904,9.2528,216.21,216.04,4.6297]
[1737109495113,9.2528,216.21,216.0,4.3388]
[1737109495311,4.629,216.09,216.0,4.3388]
[1737109495514,9.2502,216.27,216.0,4.3388]
[1737109495909,9.2502,216.27,216.01,3.83842224]
[1737109495910,4.6277,216.15,216.01,3.83842224]
[1737109496115,9.2504,216.26,216.02,3.83842224]
[1737109496317,4.6279,216.14,216.03,3.83842224]
[1737109496517,4.6279,216.14,216.01,1.528]
[1737109496716,4.6279,216.14,216.02,3.83744775]
[1737109496921,4.628,216.13,216.03,3.83744775]
[1737109497217,4.628,216.13,216.08,4.6288]
[1737109499223,4.6268,216.19,216.13,4.6279]
[1737109499425,2.9292,216.28,216.13,4.6279]
[1737109499613,2.9292,216.28,216.05,3.83369668]
[1737109499814,2.9292,216.28,216.06,3.83369668]
[1737109500018,2.9292,216.28,216.07,3.83369668]
[1737109500223,2.9292,216.28,216.08,5.31539668]
[1737109500422,2.9292,216.28,216.08,1.4817]
[1737109500717,4.6273,216.17,216.11,4.6284]
[1737109501415,4.6274,216.16,216.1,4.6286]
[1737109502224,2.9292,216.28,216.09,1.5252]
[1737109502818,2.9292,216.28,216.08,4.629]
[1737109503727,4.6281,216.13,216.08,4.629]
[1737109504423,4.6282,216.12,216.08,4.629]
[1737109505025,9.2501,216.27,216.09,4.6288]
[1737109505325,4.6279,216.14,216.09,4.6288]
[1737109505525,9.2501,216.27,216.09,4.6288]
[1737109505722,4.6282,216.12,216.07,4.629]
[1737109505924,4.6282,216.12,216.02,2.9856]
[1737109506128,4.6282,216.12,216.03,3.84111839]
[1737109506425,4.6282,216.12,216.02,2.9856]
[1737109506627,2.9292,216.28,216.03,3.84227596]
[1737109506829,2.9292,216.28,216.04,3.84227596]
[1737109507025,2.9292,216.28,216.14,4.6276]
[1737109507229,4.6267,216.19,216.14,4.6276]
[1737109507428,2.9292,216.28,216.07,3.84227596]
[1737109507732,4.626,216.22,216.08,3.84153476]
[1737109508024,2.9292,216.28,216.09,3.84153476]
[1737109508332,2.9292,216.28,216.1,6.72884303]
[1737109508531,4.6267,216.2,216.14,4.6275]
[1737109510030,2.9292,216.28,216.14,4.6275]
[1737109510227,2.9292,216.28,216.12,4.628]
[1737109510423,2.9292,216.28,216.11,1.4577]
[1737109510931,2.9292,216.28,216.11,6.086]
[1737109511131,2.9292,216.28,216.11,1.4577]
[1737109511330,4.6271,216.17,216.11,1.4577]
[1737109511526,4.6271,216.17,216.12,4.628]
[1737109511936,2.9292,216.28,216.11,1.4577]
[1737109512631,4.6264,216.21,216.11,1.4577]
[1737109512935,2.9292,216.28,216.11,1.4577]
[1737109513334,4.6261,216.22,216.17,4.6269]
[1737109513537,2.9292,216.28,216.17,4.6269]
[1737109513929,4.6262,216.22,216.17,4.6269]
[1737109514132,4.6262,216.22,216.18,4.6268]
[1737109514435,2.9292,216.28,216.11,1.4577]
[1737109514436,4.6263,216.21,216.11,1.4577]
[1737109514636,4.6263,216.21,216.12,3.85010682]
[1737109514833,4.6263,216.21,216.13,3.85010682]